Cogmind - Beta 13 @@@ ROGUE MODE // 2024.05.06 @ 16:22:18 Player: ThemBee Result: Self-destructed Performance ------------- Evolutions (8) 4000 Regions Visited (11) 2200 Robots Destroyed (61) 305 Value Destroyed (2015) 2015 Prototype IDs (19) 380 Alien Tech Used (0) 0 Bonus (1000) 1000 TOTAL SCORE: 9900 Bonus ------- Entered DSFs 500 Scanned by Researcher 500 Cogmind --------- Core Integrity 1215/1450 Matter 76/300 Energy 13/100 System Corruption 10% Temperature Cool (3) Movement Treading (40) Location -2/Testing Parts ------- > --- POWER (2) -------- (None) > --- PROPULSION (7) --- Treaded Heavy-Gyrokinetic Exoskeleton > --- UTILITY (8) ------ Improved Heat Sink High-capacity Storage Unit Advanced Target Analyzer Advanced Weapon Cycler Advanced Hardlight Generator Advanced Component Analysis Suite > --- WEAPON (6) ------- Advanced Micro-nuke Launcher Ionic Axe Lance > --- INVENTORY (20) --- Advanced Power Amplifier Advanced Cryofiber Web Advanced Coolant Injector Large Storage Unit Compact Matter Pod (0) Quantum Capacitor Improved Focal Shield Thermal Barrier Advanced Recalibrator Advanced Drone Bay (2/2) Advanced Drone Bay (2/2) Improved Remote Datajack Peak State ------------ > --- POWER ------------ Multi-Quantum Reactor > --- PROPULSION ------- Treaded Heavy-Gyrokinetic Exoskeleton > --- UTILITY ---------- Armored Scrap Engine Improved Heat Sink High-capacity Storage Unit Advanced Signal Interpreter Improved System Shield Advanced Drone Bay > --- WEAPON ----------- Hpw. Kinetic Hardcell Construct/C KE Linear Construct/G Ionic Axe Heavy Pick > --- INVENTORY -------- Light Quantum Reactor Advanced Power Amplifier Advanced Coolant Injector Large Storage Unit Quantum Capacitor Improved Focal Shield Advanced Hardlight Generator Advanced Component Analysis Suite Advanced Drone Bay Advanced Drone Bay Improved Remote Datajack Lance [Rating: 131] Favorites ----------- Power Ion Engine Engine Ion Engine Power Core Micro Fission Core Reactor Constructs Propulsion Wheel Treads Constructs Wheel Wheel Hover Unit Antigrav System Utility Armored Scrap Engine Device Armored Scrap Engine Storage High-capacity Storage Unit Processor Advanced Signal Interpreter Hackware Improved System Shield Protection Layered Light Armor Plating Weapon Light Assault Rifle Energy Gun Constructs Ballistic Gun Light Assault Rifle Ballistic Cannon Constructs Launcher Grenade Launcher Special Weapon Improved Remote Datajack Slashing Weapon Ionic Axe Piercing Weapon Heavy Pick Build | -11 -10 -10 -7 -5 -4 -4 -4 -3 -3 -2 -2 ------- Run | Yrd Mat Sub Rec Fac Fac Upp Upp Res DSF Res Tes Slots Evolved 16 | . . . . 10 2 . . 2 . 2 . Power 1 | . . . . 1 . . . . . . . Propulsion 5 | . . . . 4 1 . . . . . . Utility 6 | . . . . 2 1 . . 1 . 2 . Weapon 4 | . . . . 3 . . . 1 . . . Parts Attached 58 | 7 8 6 4 8 9 3 . 3 . 5 5 Power 7 | 1 1 1 . . 3 1 . . . . . Engine 4 | 1 1 1 . . 1 . . . . . . Core 3 | . . . . . 2 1 . . . . . Reactor . | . . . . . . . . . . . . Propulsion 10 | 2 2 1 2 2 . 1 . . . . . Treads . | . . . . . . . . . . . . Leg . | . . . . . . . . . . . . Wheel 9 | 2 2 1 2 2 . . . . . . . Hover 1 | . . . . . . 1 . . . . . Flight . | . . . . . . . . . . . . Utility 23 | 2 2 1 1 3 3 1 . 2 . 5 3 Device 11 | 1 1 . 1 . 1 . . . . 4 3 Storage 4 | 1 1 . . 1 . . . 1 . . . Processor 3 | . . 1 . . . 1 . . . 1 . Hackware 1 | . . . . . . . . 1 . . . Protection 4 | . . . . 2 2 . . . . . . Artifact . | . . . . . . . . . . . . Weapon 18 | 2 3 3 1 3 3 . . 1 . . 2 Energy Gun 4 | 1 1 1 1 . . . . . . . . Energy Cannon . | . . . . . . . . . . . . Ballistic Gun 5 | 1 2 1 . . 1 . . . . . . Ballistic Cannon . | . . . . . . . . . . . . Launcher 3 | . . 1 . . 1 . . . . . 1 Special Weapon 1 | . . . . 1 . . . . . . . Impact Weapon . | . . . . . . . . . . . . Slashing Weapon 2 | . . . . 1 1 . . . . . . Piercing Weapon 3 | . . . . 1 . . . 1 . . 1 Special Melee Weapon . | . . . . . . . . . . . . Unidentified Prototypes 2 | . . . . 1 . . . . . . 1 Parts Lost 35 | . 2 6 . 3 5 4 . . 3 7 5 Power 8 | . . 2 . . 2 1 . . 1 1 1 Propulsion 8 | . 1 2 . 2 2 . . . . 1 . Utility 8 | . . . . . 1 1 . . 1 3 2 Weapon 11 | . 1 2 . 1 . 2 . . 1 2 2 Highest Loss Streak 5 | . 1 5 . 2 5 4 . . 3 5 3 To Critical Strikes 1 | . . . . . . . . . . 1 . Average Slot Usage (%) 66 | . 99 92 60 56 46 42 42 42 41 48 51 Engine 4 | . 13 12 . . . 1 . . . . . Treads 1 | . . . 8 . . . . . . 2 4 Leg 1 | . . . 4 5 4 . . . . . . Wheel 12 | . 27 23 14 13 4 . . . . . . Device 11 | . 14 14 13 5 9 10 10 9 7 10 17 Storage 7 | . 14 14 . 5 5 5 5 4 4 4 4 Processor 1 | . . . . . . 2 5 4 4 5 4 Protection 1 | . . . . 5 4 . . . . . . Energy Gun 4 | . 10 12 3 5 . . . . . . 1 Ballistic Gun 8 | . 17 14 14 4 2 1 . . . . . Ballistic Cannon 1 | . . . . . 2 5 5 4 2 5 2 Slashing Weapon 2 | . . . . . 5 5 5 4 4 4 4 Piercing Weapon 1 | . . . . 3 . . . . 4 4 4 Naked Turns . | . . . . . . . . . . . . Heaviest Build 129 | 15 50 49 6 41 53 53 42 65 65 129 92 Greatest Support 123 | 20 20 20 20 34 89 89 89 89 89 123 123 Greatest Overweight (x) 4 | . 4 4 . 2 4 . . . . 1 . Average Overweight (x) . | . 1 2 . . . . . . . . . Largest Inventory Capacity 20 | 8 20 20 20 15 15 15 15 20 20 20 20 Average Capacity 16 | 7 19 20 5 14 15 15 15 16 20 20 20 Most Carried 20 | 7 20 20 19 15 15 13 13 14 15 18 20 Average Carried 14 | 4 17 18 4 8 14 13 13 13 14 15 18 Final Capacity 20 | 8 20 20 5 15 15 15 15 20 20 20 20 Final Carried 20 | 7 20 17 5 15 13 13 13 14 15 17 15 Scrap Engine Consumption 105 | . . . 17 13 12 2 . . 36 16 9 Constructs Created 6 | . . . 1 2 . . . . . 3 . Constructs Modified 26 | . . . 2 1 9 . . . . 12 2 Class Distribution -------------------- 68% | Mutant 16% | Tank 10% | Construct 4% | Gunner Dominant Class ---------------- Mutant | -10/Materials Mutant | -10/Subcaves Construct | -7/Recycling Tank | -5/Factory Tank | -4/Factory Mutant | -4/Upper Caves Mutant | -4/Upper Caves Mutant | -3/Research Mutant | -3/DSF Mutant | -2/Research Mutant | -2/Testing Resources | -11 -10 -10 -7 -5 -4 -4 -4 -3 -3 -2 -2 ----------- Run | Yrd Mat Sub Rec Fac Fac Upp Upp Res DSF Res Tes Matter Collected 1246 | 243 207 59 62 70 203 30 . . 4 344 24 Remotely . | . . . . . . . . . . . . Salvage Created 1987 | 29 423 126 . . 551 276 . . . 445 137 Parts 127 | 6 39 9 . . 32 4 . . . 23 14 Haulers Intercepted . | . . . . . . . . . . . . Recyclers Shooed 4 | . 1 . . . 3 . . . . . . Parts Field Recycled . | . . . . . . . . . . . . Retrieved Matter . | . . . . . . . . . . . . Parts Self-Destructed 13 | . . 11 . . . 2 . . . . . Prevented . | . . . . . . . . . . . . Kills | -11 -10 -10 -7 -5 -4 -4 -4 -3 -3 -2 -2 ------- Run | Yrd Mat Sub Rec Fac Fac Upp Upp Res DSF Res Tes Combat Hostiles Destroyed 44 | . 11 5 . . 12 2 . . . 10 4 Melee 13 | . . . . . 2 2 . . . 8 1 Guns 16 | . 11 5 . . . . . . . . . Cannons 4 | . . . . . 2 . . . . 2 . AOE 11 | . . . . . 8 . . . . . 3 Classes Destroyed 12 | 1 5 2 . . 2 1 . . . . 1 Worker 4 | . 1 . . . 2 . . . . 1 . Builder 2 | . . . . . . . . . . . 2 Tunneler 3 | 2 . . . . 1 . . . . . . Recycler 2 | . . . . . 2 . . . . . . Operator 2 | . 1 . . . 1 . . . . . . Turret 2 | . . 2 . . . . . . . . . Watcher 2 | . 2 . . . . . . . . . . Swarmer 24 | . 6 4 . . 10 . . . . 4 . Grunt 5 | . 5 . . . . . . . . . . Sentry 4 | . . 1 . . . . . . . 3 . Programmer 11 | . . . . . 2 2 . . . 3 4 Packrat 1 | . . . . . . 1 . . . . . Samaritan 1 | . . . . . . 1 . . . . . Best Kill Streak 15 | 2 3 2 . . 15 2 . . . 4 4 Combat Bots Only 12 | . 3 2 . . 12 2 . . . 4 3 Max Kills in Single Turn 3 | 1 1 1 . . 3 1 . . . 1 1 Gunslinging . | . . . . . . . . . . . . Exploded 3 | . . . . . 3 . . . . . 1 Melee 1 | . . . . . 1 1 . . . 1 1 Uniques/NPCs Destroyed . | . . . . . . . . . . . . Combat | -11 -10 -10 -7 -5 -4 -4 -4 -3 -3 -2 -2 -------- Run | Yrd Mat Sub Rec Fac Fac Upp Upp Res DSF Res Tes Hostile Shots Fired 514 | . 34 92 36 . 99 38 . . 44 123 48 Missed 178 | . 9 36 21 . 30 13 . . 20 35 14 Damage Taken 6482 | . 265 442 120 266 1192 518 . . 769 2089 821 Core 882 | . 32 91 23 . 144 60 . . 297 95 140 Absorbed by Shields 64 | . . . . . . . . . . 64 . Regen/Repaired (Parts) 1021 | . . . 10 67 390 . . . . 441 113 Core Remaining (%) 80 | 100 . . 41 100 . . 82 . 77 . . Volleys Fired 126 | 3 31 30 . . 16 11 . . . 28 7 Largest 2 | 2 2 2 . . 2 1 . . . 2 1 Hottest 189 | 70 70 70 . . 95 51 . . . 189 51 Shots Fired 200 | 6 61 49 . . 23 11 . . . 43 7 Gun 122 | 6 61 47 . . 7 . . . . . 1 Cannon 65 | . . . . . 10 11 . . . 43 1 Launcher 13 | . . 2 . . 6 . . . . . 5 Special . | . . . . . . . . . . . . Kinetic 148 | 3 51 28 . . 10 11 . . . 43 2 Thermal 39 | 3 10 19 . . 7 . . . . . . Explosive 13 | . . 2 . . 6 . . . . . 5 Electromagnetic . | . . . . . . . . . . . . Robot Hit Streak 22 | 2 12 9 . . 6 7 . . . 22 4 Robot Miss Streak 5 | 2 4 5 . . 1 1 . . . 3 2 Penetration Max . | . . . . . . . . . . . . Secondary Targets 3 | . . 3 . . . . . . . . . Max Gunslinging Chain 1 | . . 1 . . . . . . . . . Shots Hit Robots 187 | 3 39 28 . . 23 18 . . . 56 20 Core Hits 97 | 2 25 14 . . 25 3 . . . 18 10 Critical Kills 1 | . 1 . . . . . . . . . . Critical Parts Destroyed . | . . . . . . . . . . . . Critical Strikes 17 | . 2 1 . . . 1 . . . 9 4 Burn 2 | . 1 1 . . . . . . . . . Destroy 1 | . 1 . . . . . . . . . . Blast 2 | . . . . . . . . . . 2 . Sever 10 | . . . . . . 1 . . . 6 3 Impale 2 | . . . . . . . . . . 1 1 Melee Attacks 77 | . . . . . 12 10 . . . 36 19 Impact . | . . . . . . . . . . . . Slashing 71 | . . . . . 12 10 . . . 32 17 Piercing 6 | . . . . . . . . . . 4 2 Sneak Attacks 8 | . . . . . 4 2 . . . 1 1 Combat Hostiles . | . . . . . . . . . . . . Follow-up Attacks 5 | . . . . . . . . . . 4 1 Damage Inflicted 7839 | 37 440 332 . . 1538 760 . . . 3019 1713 Guns 877 | 37 440 288 . . 112 . . . . . . Cannons 2417 | . . . . . 289 162 . . . 1918 48 Explosions 1430 | . . 44 . . 578 . . . . . 808 Melee 3039 | . . . . . 559 598 . . . 1101 781 Ramming 76 | . . . . . . . . . . . 76 Kinetic 2826 | 11 327 137 . . 223 162 . . . 1918 48 Thermal 468 | 26 113 151 . . 178 . . . . . . Explosive 1430 | . . 44 . . 578 . . . . . 808 Electromagnetic . | . . . . . . . . . . . . Impact . | . . . . . . . . . . . . Slashing 2880 | . . . . . 559 598 . . . 971 752 Piercing 159 | . . . . . . . . . . 130 29 Highest Corruption 10 | . . . . . 3 7 7 . . 7 10 Average Corruption 4 | . . . . . 2 6 7 . . 4 6 Corruption Purged 5 | . . . . . . . . . . 5 . Corruption Blocked . | . . . . . . . . . . . . Effects 38 | . . . . . 13 10 . . . 8 7 Message Errors 9 | . . . . . 3 3 . . . 1 2 Matter Fused 8 | . . . . . 5 . . . . 1 2 Heat Flow Errors 9 | . . . . . 2 5 . . . 1 1 Energy Discharges 5 | . . . . . . . . . . 4 1 Data Loss (minor) 3 | . . . . . 1 1 . . . 1 . Data Loss (major) 4 | . . . . . 2 1 . . . . 1 Overload Shots . | . . . . . . . . . . . . Overflow Damage 719 | . . . . . 200 248 . . . 191 80 Projectiles 205 | . . . . . 14 . . . . 191 . Explosions 27 | . . . . . 3 . . . . . 24 Melee 487 | . . . . . 183 248 . . . . 56 Knockbacks 17 | . . . . . . 5 . . . 9 3 Impact 2 | . . . . . . . . . . . 2 Kinetic 14 | . . . . . . 5 . . . 8 1 Secondary 1 | . . . . . . . . . . 1 . Self-Inflicted Damage 96 | . . . . . 30 . . . . . 66 Shots 4 | . . . . . 1 . . . . . 3 Rammed 5 | . . . 1 . . . . . . . 4 Targets Rammed 5 | . . . 1 . . . . . . . 4 Kicked . | . . . . . . . . . . . . Crushed . | . . . . . . . . . . . . Highest Temperature 333 | 18 104 1 . . 198 267 . . . 333 255 Average Temperature 79 | 9 29 1 . . 55 96 . . . 108 133 Received Heat Transfer 493 | . 93 135 42 . 12 . . . 66 145 . Siege Activations . | . . . . . . . . . . . . Robots Corrupted . | . . . . . . . . . . . . Combat Hostiles . | . . . . . . . . . . . . Parts Fried . | . . . . . . . . . . . . Impact Corruptions 1 | . . . . . . . . . . 1 . Robots Melted . | . . . . . . . . . . . . Combat Hostiles . | . . . . . . . . . . . . Parts Melted 2 | . . . . . . . . . . 1 1 Heat Transferred 999 | 74 407 518 . . . . . . . . . Parts Sabotaged . | . . . . . . . . . . . . Parts Stolen . | . . . . . . . . . . . . Parts Stripped . | . . . . . . . . . . . . Power Chain Reactions . | . . . . . . . . . . . . Alert | -11 -10 -10 -7 -5 -4 -4 -4 -3 -3 -2 -2 ------- Run | Yrd Mat Sub Rec Fac Fac Upp Upp Res DSF Res Tes Peak Influence 382 | 10 173 . 382 86 196 . . 55 64 299 368 Initial 345 | . 6 . 345 86 14 . . 15 44 24 156 Average 107 | 1 48 . 307 72 56 . . 52 49 148 190 Maximum Alert Level 1 | . . . 1 . 1 . . . . 1 1 Low Security (%) 81 | 100 100 . 7 100 99 . . 100 100 64 70 Level 1 18 | . . . 92 . . . . . . 35 29 Level 2 . | . . . . . . . . . . . . Level 3 . | . . . . . . . . . . . . Level 4 . | . . . . . . . . . . . . Level 5 . | . . . . . . . . . . . . High Security . | . . . . . . . . . . . . Max Security . | . . . . . . . . . . . . Squads Dispatched 12 | . 2 . . . 1 . . . 1 4 4 Investigation 1 | . . . . . . . . . . . 1 Extermination 4 | . . . . . 1 . . . . 2 1 Reinforcement 7 | . 2 . . . . . . . 1 2 2 Assault . | . . . . . . . . . . . . Garrison . | . . . . . . . . . . . . Intercept . | . . . . . . . . . . . . Searches Triggered . | . . . . . . . . . . . . Construction Impeded 1 | . . . . . . . . . . . 1 Haulers Reinforced . | . . . . . . . . . . . . Active Scanning Responses . | . . . . . . . . . . . . Cargo Convoy Interrupts . | . . . . . . . . . . . . Stealth | -11 -10 -10 -7 -5 -4 -4 -4 -3 -3 -2 -2 --------- Run | Yrd Mat Sub Rec Fac Fac Upp Upp Res DSF Res Tes Distress Signals 5 | . . . . 1 1 . . . . 3 . Communications Jammed . | . . . . . . . . . . . . Distress Signals . | . . . . . . . . . . . . Times Spotted 112 | . 16 26 3 2 18 2 . . 6 32 7 Peak Tracking Total 12 | . 3 6 2 2 9 2 . . 5 12 4 Tactical Retreats 12 | . 2 4 1 . 1 . . . 2 2 . Traps | -11 -10 -10 -7 -5 -4 -4 -4 -3 -3 -2 -2 ------- Run | Yrd Mat Sub Rec Fac Fac Upp Upp Res DSF Res Tes Traps Triggered 7 | . 2 . . 2 1 . . . 1 . 1 Indirectly . | . . . . . . . . . . . . Trap Hack Attempts . | . . . . . . . . . . . . Triggered . | . . . . . . . . . . . . Disarmed . | . . . . . . . . . . . . Reprogrammed 1 | . . . . . 1 . . . . . . Reused . | . . . . . . . . . . . . Traps Extracted . | . . . . . . . . . . . . Installed . | . . . . . . . . . . . . Triggered . | . . . . . . . . . . . . Machines | -11 -10 -10 -7 -5 -4 -4 -4 -3 -3 -2 -2 ---------- Run | Yrd Mat Sub Rec Fac Fac Upp Upp Res DSF Res Tes Machines Disabled 4 | . . 3 . . . . . . . 1 . Max in Single Turn 3 | . . 3 . . . . . . . 1 . Garrison Access 1 | . . . . . 1 . . . . . . Machines Repaired . | . . . . . . . . . . . . Machines Dismantled . | . . . . . . . . . . . . Machines Sabotaged . | . . . . . . . . . . . . Overloaded Fab Kills . | . . . . . . . . . . . . Hacking | -11 -10 -10 -7 -5 -4 -4 -4 -3 -3 -2 -2 --------- Run | Yrd Mat Sub Rec Fac Fac Upp Upp Res DSF Res Tes Machines Accessed 37 | . 9 . 9 3 7 . . 5 . 1 3 Terminals 25 | . 7 . 5 2 5 . . 3 . 1 2 Fabricators . | . . . . . . . . . . . . Repair Stations 1 | . . . . . 1 . . . . . . Recycling Units 6 | . 2 . 4 . . . . . . . . Scanalyzers 3 | . . . . 1 . . . 1 . . 1 Garrison Access 2 | . . . . . 1 . . 1 . . . Total Hacks 98 | . 33 . 22 7 21 . . 9 . 1 5 Successful 49 | . 20 . 11 2 10 . . 5 . . 1 Failed 49 | . 13 . 11 5 11 . . 4 . 1 4 Catastrophic 5 | . 1 . . . . . . 1 . 1 2 Database Lockouts . | . . . . . . . . . . . . Manual 44 | . 12 . 10 4 9 . . 4 . 1 4 Terminals 78 | . 31 . 13 5 18 . . 6 . 1 4 Fabricators . | . . . . . . . . . . . . Repair Stations 2 | . . . . . 2 . . . . . . Recycling Units 11 | . 2 . 9 . . . . . . . . Scanalyzers 4 | . . . . 2 . . . 1 . . 1 Garrison Access 3 | . . . . . 1 . . 2 . . . Terminal Hacks 29 | . 17 . 3 . 6 . . 3 . . . Robot Analysis 2 | . 1 . . . 1 . . . . . . Prototype ID Bank 5 | . 2 . 1 . 1 . . 1 . . . Open DSF 1 | . . . . . . . . 1 . . . Branch Access Points 1 | . 1 . . . . . . . . . . Terminal Index 1 | . 1 . . . . . . . . . . Alert Level 2 | . 1 . . . . . . 1 . . . Unreport Threat 2 | . 1 . . . 1 . . . . . . Locate Traps 5 | . 4 . . . 1 . . . . . . Reprogram Traps 1 | . . . . . 1 . . . . . . Dispatch Records 1 | . 1 . . . . . . . . . . Hauler Manifests 3 | . 2 . 1 . . . . . . . . Zone Layout 5 | . 3 . 1 . 1 . . . . . . Fabricator Hacks . | . . . . . . . . . . . . Repair Station Hacks . | . . . . . . . . . . . . Recycling Unit Hacks 4 | . . . 4 . . . . . . . . Report Inventory 4 | . . . 4 . . . . . . . . Scanalyzer 2 | . . . . 2 . . . . . . . Insert Component 1 | . . . . 1 . . . . . . . Analyze 1 | . . . . 1 . . . . . . . Garrison Access Hacks 1 | . . . . . 1 . . . . . . Seal Access 1 | . . . . . 1 . . . . . . Unauthorized Hacks 13 | . 3 . 4 . 3 . . 2 . . 1 Terminals 8 | . 2 . 2 . 2 . . 1 . . 1 Botnet 8 | . 2 . 2 . 2 . . 1 . . 1 Fabricators . | . . . . . . . . . . . . Repair Stations 1 | . . . . . 1 . . . . . . Mechanics 1 | . . . . . 1 . . . . . . Recycling Units 3 | . 1 . 2 . . . . . . . . Monitor 1 | . . . 1 . . . . . . . . Recyclers 2 | . 1 . 1 . . . . . . . . Scanalyzers 1 | . . . . . . . . 1 . . . Researchers 1 | . . . . . . . . 1 . . . Garrison Access . | . . . . . . . . . . . . Data Cores Recovered . | . . . . . . . . . . . . Used . | . . . . . . . . . . . . Hacking Detections 27 | . 7 . 6 3 4 . . 3 . 1 3 Full Trace Events . | . . . . . . . . . . . . Feedback Events . | . . . . . . . . . . . . Feedback Blocked . | . . . . . . . . . . . . Robot Schematics Acquired . | . . . . . . . . . . . . Robots Built . | . . . . . . . . . . . . Authchips . | . . . . . . . . . . . . Time . | . . . . . . . . . . . . Total Robot Build Rating . | . . . . . . . . . . . . Part Schematics Acquired 1 | . . . . 1 . . . . . . . Parts Built . | . . . . . . . . . . . . Authchips . | . . . . . . . . . . . . Time . | . . . . . . . . . . . . Total Part Build Rating . | . . . . . . . . . . . . Parts Repaired . | . . . . . . . . . . . . Time . | . . . . . . . . . . . . Parts Recycled . | . . . . . . . . . . . . Recycled Matter . | . . . . . . . . . . . . Retrieved Matter . | . . . . . . . . . . . . Retrieved Components . | . . . . . . . . . . . . Parts Scanalyzed 1 | . . . . 1 . . . . . . . Part Schematics Acquired 1 | . . . . 1 . . . . . . . Parts Damaged . | . . . . . . . . . . . . Bothacking | -11 -10 -10 -7 -5 -4 -4 -4 -3 -3 -2 -2 ------------ Run | Yrd Mat Sub Rec Fac Fac Upp Upp Res DSF Res Tes Used RIF Installer . | . . . . . . . . . . . . Robots Hacked . | . . . . . . . . . . . . Non-combat . | . . . . . . . . . . . . Combat . | . . . . . . . . . . . . Robot Hacks Applied . | . . . . . . . . . . . . Relay Couplers Released . | . . . . . . . . . . . . Fabnet Peak Effective % . | . . . . . . . . . . . . Robots Rewired . | . . . . . . . . . . . . Allies Hacked . | . . . . . . . . . . . . Hacks Repelled . | . . . . . . . . . . . . Allies | -11 -10 -10 -7 -5 -4 -4 -4 -3 -3 -2 -2 -------- Run | Yrd Mat Sub Rec Fac Fac Upp Upp Res DSF Res Tes Total Allies . | . . . . . . . . . . . . Largest Group . | . . . . . . . . . . . . Highest-Rated Group . | . . . . . . . . . . . . Highest-Rated Ally . | . . . . . . . . . . . . Total Orders 5 | . . . . . . . . . . 5 . EXPLORE 2 | . . . . . . . . . . 2 . RETURN 3 | . . . . . . . . . . 3 . Ally Attacks . | . . . . . . . . . . . . Total Damage . | . . . . . . . . . . . . Kills . | . . . . . . . . . . . . Allies Corrupted . | . . . . . . . . . . . . Allies Melted . | . . . . . . . . . . . . Intel | -11 -10 -10 -7 -5 -4 -4 -4 -3 -3 -2 -2 ------- Run | Yrd Mat Sub Rec Fac Fac Upp Upp Res DSF Res Tes Robot Analysis Total 2 | . 1 . . . 1 . . . . . . Derelict Logs Recovered 1 | . . . . . . 1 . . . . . Drone Launches 6 | . . . . . . . . . . 6 . Drone Recoveries 6 | . . . . . . . . . . 6 . Exploration | -11 -10 -10 -7 -5 -4 -4 -4 -3 -3 -2 -2 ------------- Run | Yrd Mat Sub Rec Fac Fac Upp Upp Res DSF Res Tes Turns Passed 5232 | 61 1444 312 613 447 865 287 17 219 118 560 289 Spaces Moved 3798 | 42 606 205 601 449 617 269 21 146 137 422 283 Core 5 | 5 . . . . . . . . . . . Treads 594 | . . . 135 . . . . . . 176 283 Legs 486 | . . . . 89 397 . . . . . . Wheels 1786 | 37 606 205 466 360 112 . . . . . . Hover 847 | . . . . . 108 269 21 146 137 166 . Flight 80 | . . . . . . . . . . 80 . Fastest Speed 40 | 50 80 110 80 80 82 82 82 82 82 40 40 Average Speed 88 | 76 104 112 96 93 98 82 82 82 82 67 40 Slowest Speed 241 | 80 140 140 171 241 167 82 82 82 82 128 40 Overloaded Moves . | . . . . . . . . . . . . Propulsion Burnouts . | . . . . . . . . . . . . Robots Hopped . | . . . . . . . . . . . . Cave-ins Triggered . | . . . . . . . . . . . . Exploration Rate (%) 35 | 4 92 23 92 10 13 44 8 4 91 14 26 Regions Visited 11 Branch Regions 5 Pre-discovered Areas . | . . . . . . . . . . . . Known Exits Taken 4 | . . 1 . . . 1 1 1 . . . Unknown Exits Taken 6 | 1 1 . 1 1 1 . . . . 1 . Scrap Searched 1 | . . . . . . 1 . . . . . Spaces Dug 7 | . . . . . . . . . . 7 . Terrain Destroyed 71 | . . 6 . . 5 . . . . 14 46 Melee 5 | . . . . . . . . . . 5 . Projectile 9 | . . . . . . . . . . 9 . AOE 57 | . . 6 . . 5 . . . . . 46 Terrain Rammed . | . . . . . . . . . . . . Walls Destroyed . | . . . . . . . . . . . . Machines Disabled . | . . . . . . . . . . . . Actions | -11 -10 -10 -7 -5 -4 -4 -4 -3 -3 -2 -2 --------- Run | Yrd Mat Sub Rec Fac Fac Upp Upp Res DSF Res Tes Total 5348 | 61 1361 241 636 477 830 308 20 244 142 601 427 Wait 1230 | 3 699 1 17 11 171 15 . 95 5 109 104 Move 3787 | 41 605 204 600 448 616 268 20 145 136 421 283 Hop . | . . . . . . . . . . . . Pick Up 48 | 7 16 . 3 7 3 . . 1 1 6 4 Fast Attach 27 | 7 3 . 2 3 6 3 . 1 . 2 . Attach 22 | . 3 3 1 4 3 . . 1 . 3 4 Detach 4 | . . . 1 3 . . . . . . . Swap 9 | . 2 3 1 1 . . . 1 . . 1 Drop 16 | . 2 . 8 . 3 1 . . . . 2 Fire 126 | 3 31 30 . . 16 11 . . . 28 7 Melee 71 | . . . . . 12 10 . . . 32 17 Ram . | . . . . . . . . . . . . Kick . | . . . . . . . . . . . . Crush 5 | . . . 1 . . . . . . . 4 Escape Stasis 1 | . . . . . . . . . . . 1 Rewire 2 | . . . 2 . . . . . . . . Trap . | . . . . . . . . . . . . Miscellaneous . | . . . . . . . . . . . . Route ------- -11/Scrapyard -10/Materials (discovered 6 exits: [*Mat x3] / *Min x2 / [*Sub]) -10/Subcaves (discovered 2 exits: [*Mat] / *Rec) -7/Recycling -5/Factory (discovered 2 exits: *Fac / [*Upp]) -4/Factory -4/Upper Caves -4/Upper Caves -3/Research -3/DSF -2/Research -2/Testing History --------- Turn | Location | Event 15 | -11/Scrapyard | Discovered new exit (range 16) 62 | -11/Scrapyard | Entered Materials 70 | -10/Materials | Discovered new exit (range 12) 120 | -10/Materials | Discovered new exit (range 5) 302 | -10/Materials | Build established: Mutant 431 | -10/Materials | Identified exit to Mines 616 | -10/Materials | Discovered new exit (range 12) 728 | -10/Materials | Discovered new exit (range 15) 1488 | -10/Materials | Discovered new exit (range 5) 1506 | -10/Materials | Entered Subcaves 1596 | -10/Subcaves | Discovered new exit (range 6) 1624 | -10/Subcaves | A swath of the cavern ceiling suddenly collapsed 1730 | -10/Subcaves | Discovered new exit (range 13) 1818 | -10/Subcaves | Identified exit to Recycling 1818 | -10/Subcaves | Entered Recycling 1818 | -7/Recycling | Found Scrap Engine 1824 | -7/Recycling | Lost 5 parts (2p1n2w) 2025 | -7/Recycling | Discovered new exit (range 15) 2084 | -7/Recycling | Core integrity fell below 50% 2174 | -7/Recycling | Build established: Construct 2431 | -7/Recycling | Entered Factory 2431 | -5/Factory | Evolved 10 slots: Power x1, Propulsion x4, Utility x2, Weapon x3 2462 | -5/Factory | Discovered new exit (range 15) 2473 | -5/Factory | Discovered new exit (range 15) 2785 | -5/Factory | Build established: Tank 2878 | -5/Factory | Entered another Factory area 2878 | -4/Factory | Evolved 2 slots: Propulsion x1, Utility x1 3086 | -4/Factory | Build established: Mutant 3316 | -4/Factory | Lost 5 parts (2p2n1u) 3328 | -4/Factory | Destroyed 12 combat bots 3392 | -4/Factory | Discovered new exit (range 15) 3412 | -4/Factory | Found Quantum Capacitor 3557 | -4/Factory | Build established: Tank 3743 | -4/Factory | Entered Upper Caves 3856 | -4/Upper Caves | Lost 4 parts (1p1u2w) 3969 | -4/Upper Caves | Learned Research garrison access intel 4023 | -4/Upper Caves | Discovered new exit (range 8) 4028 | -4/Upper Caves | Identified exit to Upper Caves 4030 | -4/Upper Caves | Entered another Upper Caves area 4036 | -4/Upper Caves | Discovered new exit (range 15) 4046 | -4/Upper Caves | Identified exit to Research 4047 | -4/Upper Caves | Entered Research 4047 | -3/Research | Evolved 2 slots: Utility x1, Weapon x1 4048 | -3/Research | Loaded intel: 4 garrison access locations 4097 | -3/Research | Build established: Mutant 4266 | -3/Research | Identified exit to DSF 4266 | -3/Research | Entered DSF 4299 | -3/DSF | Additional patrols routed to DSF 4323 | -3/DSF | Discovered new exit (range 15) 4383 | -3/DSF | Identified exit to Research 4384 | -3/DSF | Entered Research 4384 | -2/Research | Evolved 2 slots: Utility x2 4388 | -2/Research | Lost 3 parts (1p1u1w) 4676 | -2/Research | Found Prototype Device 4770 | -2/Research | Lost 5 parts (1p1n2u1w) 4831 | -2/Research | Spotted B-90 Cyclops 4938 | -2/Research | Discovered new exit (range 15) 4944 | -2/Research | Entered Testing 4955 | -2/Testing | Identified Thermal Barrier 4960 | -2/Testing | Found Prototype Launcher 4993 | -2/Testing | Identified Adv. Micro-nuke Launcher 5180 | -2/Testing | System corruption reached 10% 5227 | -2/Testing | Scanned by Researcher 5233 | -2/Testing | Self-destructed Last Messages --------------- dispatching reinforcements to local area. 05222_ U-05 Engineer destroyed. 05224_ KE Linear Construct/G destroyed. 05224_ Scrap Engine damaged due to network destabilization (-9). 05224_ Door malfunctions. 05225_ Scrap Engine destroyed. 05226_ U-05 Engineer repairs door. 05226_ P-80 Master destroyed. 05227_ C-65 Expert calls for reinforcements. 05227_ ALERT: Hostile activity reported, dispatching reinforcements to area. 05227_ Held in stasis. 05227_ C-65 Expert is analyzing... 05227_ ALERT: Encountered unknown unique technology, formulating response. 05228_ P-80 Master destroyed. 05231_ Held in stasis. 05231_ U-05 Engineer lays Concrete. 05232_ The unstable cave ceiling collapses. Map ----- +----------------------------------------------------+ | ?????????????????????????????????????????????????? | | ?????????????????????????????????????????????????? | | ?????????????????????????????????????????????????? | | ?????????????????????????????????????????????????? | | ?????????????????????????????????????????????????? | | ?????????????????????????????????????????????????? | | ?????????????????????????????????????????????????? | | #######??????????????????????????????????????????? | | #??????????????????????????????????????????? | | " ???????????????????????????????????????????? | | " ????????????????????????????????????????????? | | #?????????????????????????????????????????????? | | ??????????????????????????????????????????????? | | #???????????????????????????????????????????????? | | #??????????????????????????##########???????????? | | !#????????????????########### #???????????? | | #????????????????# # #???????????? | | *#????????????????#= # #???????????? | | #############????# ! # #???????????? | | %=! #????# # ##??#???????? | | ############ #????# # ## ##??????? | | #??# #????# # ##?????? | | " """" #??# #????# # #?????? | | "" """" #??# #????# # #?????? | | "" """" #### ##########+######+# ##?????? | | """" # @ ??? | | + =%= ??? | | "" """" # u c ??? | | "" """" # ???? | | "" """" # ####+#####+###### # ###???? | | "" """" # # ## #?### #?????? | | # # """ ##"" "#????##### ????? | | # # """ ##""" "#?????????" # """????? | | ######### # """ ##"" ""##?????????? #?"??????? | | ????????# # ##"" "?????????????? #????????? | | ????????# + """ ##"""#???????????????#????????? | | ###?????# # """ ######????????????????????????? | | " #?????# # """ #?????????????????????????????? | | " #?????# # #?????????????????????????????? | | #?????# # #?????????????????????????????? | | " #?????# # #?????????????????????????????? | | " #?????# # #?????????????????????????????? | | " #?????# #######?????????????????????????????? | | #?????# #???????????????????????????????????? | | #?????# #???????????????????????????????????? | | ######### #???????????????????????????????????? | | #???????????????????????????????????? | | #???????????????????????????????????? | | #???????????????????????????????????? | | #???????????????????????????????????? | +----------------------------------------------------+ Best States ------------- Heat Dissipation 63 Energy Generation 49 Energy Capacity 730 Matter Stores 300 Matter Capacity 300 Sight Range 16 Robot Scan Range 16 Terrain Scan Density 10 Armor Coverage 150 Weapon Cycling 25 Evasion (%) 62 Target Analysis 8 Recoil Reduction 3 Defensive Hacking 12 Item Schematics ----------------- Gyrokinetic Inverter | -5/Factory | Scanalyzed Robot Schematics ------------------ None Fabricated ------------ Nothing Alien Tech Used ----------------- None Achievements -------------- None Challenges ------------ None Game ------ Seed HeatNovaTreads Manual? 0 Play Time 01:44:57 Cumulative 65.3 hours Start 2024.05.06 @ 12:31:11 End 2024.05.06 @ 16:22:18 Sessions 3 Manual Loads 0 Difficulty Rogue Special Mode None Game No. 40 Rogue 40 Adventurer 0 Explorer 0 Win Type - Total 1 Types 1/0/0/0/0/0/0/0/0 Lore% 27 Gallery% 42 Achievement% 33 Wizard Run 0 Options --------- Layout 2 ASCII 0 Keyboard 0 Movement Numpad Keybinds 0 Fullscreen 2 Font 24/Smallcaps Map View 50x44 Zoom Use 0% Tactical HUD 1 Map Filters NONE Filters NONE Steam 1 RUN: 10e6e618-45f0-419a-ab40-c9c65d0572a1